fUSD/lending_fUSD_20260617
["ID","MTS","AMOUNT","RATE_DAILY","PERIOD"]
[425235491,1781627509000,-1497.446791,0.00035019,7]
[425235518,1781627509000,-188.68618111,0.000351,120]
[425235468,1781627509000,-3653.519003,0.00035019,7]
[425235473,1781627509000,-2301.506184,0.00035019,7]
[425235469,1781627509000,-196.575907,0.00035019,7]
[425235470,1781627509000,-1531.422776,0.00035019,7]
[425235472,1781627509000,-151.0,0.00035019,7]
[425235471,1781627509000,-3848.457869,0.00035019,7]
[425235479,1781627509000,-196.575907,0.00035019,7]
[425235477,1781627509000,-1289.520228,0.00035019,7]
[425235474,1781627509000,-3071.453662,0.00035019,7]
[425235475,1781627509000,-196.575907,0.00035019,7]
[425235476,1781627509000,-3848.457869,0.00035019,7]
[425235478,1781627509000,-151.0,0.00035019,7]
[425235481,1781627509000,-151.0,0.00035019,7]
[425235480,1781627509000,-3071.453662,0.00035019,7]
[425235482,1781627509000,-3848.457869,0.00035019,7]
[425235486,1781627509000,-166.81556,0.00035019,7]
[425235484,1781627509000,-265.979518,0.00035019,7]
[425235483,1781627509000,-1289.520228,0.00035019,7]
[425235485,1781627509000,-444.015746,0.00035019,7]
[425235487,1781627509000,-3071.453662,0.00035019,7]
[425235490,1781627509000,-3848.457869,0.00035019,7]
[425235488,1781627509000,-218.073132,0.00035019,7]
[425235489,1781627509000,-239.142907,0.00035019,7]
[425235492,1781627509000,-541.0,0.00035022,30]
[425235498,1781627509000,-294.47,0.0003503,30]
[425235517,1781627509000,-1306.19994577,0.000351,120]
[425235516,1781627509000,-205.33180729,0.000351,120]
[425235533,1781627509000,-2180.0836,0.00035102,2]
[425235560,1781627509000,-993.360127,0.00035206,7]
[425235554,1781627509000,-250.554136,0.00035206,2]
[425235557,1781627509000,-2721.127501,0.00035206,7]
[425235556,1781627509000,-151.0,0.00035206,3]
[425235555,1781627509000,-2721.127501,0.00035206,7]
[425235561,1781627509000,-3342.977326,0.00035206,7]
[425235564,1781627509000,-993.360127,0.00035206,7]
[425235565,1781627509000,-3342.977326,0.00035206,7]
[425235563,1781627509000,-2721.127501,0.00035206,7]
[425235562,1781627509000,-1636.538202,0.00035206,7]
[425235569,1781627509000,-993.360127,0.00035206,7]
[425235570,1781627509000,-3342.977326,0.00035206,7]
[425235558,1781627509000,-1636.538202,0.00035206,7]
[425235571,1781627509000,-151.0,0.00035206,7]
[425235568,1781627509000,-1636.538202,0.00035206,7]
[425235572,1781627509000,-1661.404131,0.00035206,7]
[425235573,1781627509000,-1357.542871,0.00035206,7]
[425235576,1781627509000,-3342.977326,0.00035206,7]
[425235574,1781627509000,-1636.538202,0.00035206,7]
[425235575,1781627509000,-993.360127,0.00035206,7]
[425235579,1781627509000,-1661.404131,0.00035206,7]
[425235578,1781627509000,-1969.845741,0.00035206,7]
[425235581,1781627509000,-589.381274,0.00035206,7]
[425235577,1781627509000,-411.575731,0.00035206,7]
[425235525,1781627509000,-215.25771094,0.000351,120]
[425235580,1781627509000,-1357.542871,0.00035206,7]
[425235566,1781627509000,-1357.542871,0.00035206,7]
[425235550,1781627509000,-999.141507,0.00035206,7]
[425235567,1781627509000,-1661.404131,0.00035206,7]
[425235559,1781627509000,-151.0,0.00035206,3]
[425235552,1781627509000,-999.141507,0.00035206,7]
[425235535,1781627509000,-519.80465135,0.00035129,60]
[425235529,1781627509000,-1362.76651292,0.000351,120]
[425235528,1781627509000,-226.62297832,0.000351,120]
[425235534,1781627509000,-158.25033973,0.00035108,2]
[425235532,1781627509000,-166.56322992,0.000351,120]
[425235530,1781627509000,-202.03090744,0.000351,120]
[425235527,1781627509000,-186.35127584,0.000351,120]
[425235526,1781627509000,-331.67777433,0.000351,120]
[425235531,1781627509000,-268.85052862,0.000351,120]
[425235536,1781627509000,-4876.7007,0.00035143,2]
[425235539,1781627509000,-204.0,0.0003515,120]
[425235538,1781627509000,-204.0,0.0003515,120]
[425235524,1781627509000,-192.84114449,0.000351,120]
[425235546,1781627509000,-999.141507,0.00035206,7]
[425235542,1781627509000,-500.10070037,0.000352,10]
[425235551,1781627509000,-878.20053,0.00035206,7]
[425235545,1781627509000,-878.20053,0.00035206,7]
[425235543,1781627509000,-1121.12486966,0.00035202,2]
[425235540,1781627509000,-3000.0,0.000352,30]
[425235544,1781627509000,-23910.862,0.00035206,30]
[425235553,1781627509000,-2721.127501,0.00035206,7]
[425235547,1781627509000,-878.20053,0.00035206,7]
[425235537,1781627509000,-725.0,0.00035147,10]
[425235548,1781627509000,-999.141507,0.00035206,7]
[425235541,1781627509000,-690.92891329,0.000352,120]
[425235549,1781627509000,-878.20053,0.00035206,7]
[425235622,1781627510000,-3903.925446,0.00035206,7]
[425235621,1781627510000,-168.02051,0.00035206,7]
[425235616,1781627510000,-168.02051,0.00035206,7]
[425235617,1781627510000,-3903.925446,0.00035206,7]
[425235610,1781627510000,-151.0,0.00035206,7]
[425235611,1781627510000,-2633.588058,0.00035206,7]
[425235619,1781627510000,-2633.588058,0.00035206,7]
[425235612,1781627510000,-207.204999,0.00035206,7]
[425235613,1781627510000,-3903.925446,0.00035206,7]
[425235620,1781627510000,-151.0,0.00035206,7]
[425235614,1781627510000,-2633.588058,0.00035206,7]
[425235623,1781627510000,-151.0,0.00035206,7]
[425235638,1781627510000,-399.18849,0.00035206,7]
[425235626,1781627510000,-168.02051,0.00035206,7]
[425235627,1781627510000,-275.237409,0.00035206,7]
[425235624,1781627510000,-168.02051,0.00035206,7]
[425235629,1781627510000,-3641.605945,0.00035206,7]
[425235628,1781627510000,-275.237409,0.00035206,7]
[425235625,1781627510000,-151.0,0.00035206,7]
[425235634,1781627510000,-859.813943,0.00035206,7]
[425235631,1781627510000,-3641.605945,0.00035206,7]
[425235633,1781627510000,-3641.605945,0.00035206,7]
[425235632,1781627510000,-275.237409,0.00035206,7]
[425235635,1781627510000,-3641.605945,0.00035206,7]
[425235615,1781627510000,-151.0,0.00035206,7]
[425235630,1781627510000,-275.237409,0.00035206,7]
[425235618,1781627510000,-151.0,0.00035206,7]
[425235583,1781627510000,-411.575731,0.00035206,7]
[425235608,1781627510000,-676.366792,0.00035206,7]
[425235640,1781627510000,-859.813943,0.00035206,7]
[425235582,1781627510000,-1000.536956,0.00035206,7]
[425235584,1781627510000,-1382.607938,0.00035206,7]
[425235587,1781627510000,-1357.542871,0.00035206,7]
[425235595,1781627510000,-1382.607938,0.00035206,7]
[425235590,1781627510000,-1382.607938,0.00035206,7]
[425235585,1781627510000,-1969.845741,0.00035206,7]
[425235586,1781627510000,-1661.404131,0.00035206,7]
[425235594,1781627510000,-1000.536956,0.00035206,7]
[425235592,1781627510000,-1969.845741,0.00035206,7]
[425235588,1781627510000,-589.381274,0.00035206,7]
[425235591,1781627510000,-411.575731,0.00035206,7]
[425235609,1781627510000,-3903.925446,0.00035206,7]
[425235589,1781627510000,-1000.536956,0.00035206,7]
[425235597,1781627510000,-1969.845741,0.00035206,7]
[425235607,1781627510000,-207.204999,0.00035206,7]
[425235596,1781627510000,-411.575731,0.00035206,7]
[425235599,1781627510000,-589.381274,0.00035206,7]
[425235600,1781627510000,-207.204999,0.00035206,7]
[425235602,1781627510000,-1382.607938,0.00035206,7]
[425235604,1781627510000,-207.204999,0.00035206,7]
[425235606,1781627510000,-2633.588058,0.00035206,7]
[425235598,1781627510000,-676.366792,0.00035206,7]
[425235605,1781627510000,-676.366792,0.00035206,7]
[425235601,1781627510000,-1000.536956,0.00035206,7]
[425235603,1781627510000,-676.366792,0.00035206,7]
[425235593,1781627510000,-589.381274,0.00035206,7]
[425235642,1781627510000,-399.18849,0.00035206,7]
[425235648,1781627510000,-931.731581,0.00035206,7]
[425235637,1781627510000,-159.04856,0.00035206,7]
[425235667,1781627510000,-1531.422776,0.00035206,7]
[425235676,1781627510000,-196.575907,0.00035206,7]
[425235674,1781627510000,-1289.520228,0.00035206,7]
[425235677,1781627510000,-3071.453662,0.00035206,7]
[425235672,1781627510000,-3071.453662,0.00035206,7]
[425235675,1781627510000,-151.0,0.00035206,7]
[425235673,1781627510000,-3848.457869,0.00035206,7]
[425235687,1781627510000,-151.689703,0.00035214,7]
[425235678,1781627510000,-151.0,0.00035206,7]
[425235680,1781627510000,-444.015746,0.00035206,7]
[425235679,1781627510000,-3848.457869,0.00035206,7]
[425235681,1781627510000,-265.979518,0.00035206,7]
[425235682,1781627510000,-1289.520228,0.00035206,7]
[425235685,1781627510000,-218.073132,0.00035206,7]
[425235686,1781627510000,-3848.457869,0.00035206,7]
[425235683,1781627510000,-166.81556,0.00035206,7]
[425235684,1781627510000,-3071.453662,0.00035206,7]
[425235690,1781627510000,-151.689703,0.00035214,7]
[425235688,1781627510000,-151.689703,0.00035214,7]
[425235689,1781627510000,-151.689703,0.00035214,7]
[425235694,1781627510000,-205.741682,0.00035214,7]
[425235693,1781627510000,-347.033666,0.00035214,7]
[425235692,1781627510000,-205.741682,0.00035214,7]
[425235695,1781627510000,-151.0,0.00035214,7]
[425235696,1781627510000,-347.033666,0.00035214,7]
[425235669,1781627510000,-151.0,0.00035206,7]
[425235671,1781627510000,-196.575907,0.00035206,7]
[425235691,1781627510000,-347.033666,0.00035214,7]
[425235668,1781627510000,-3848.457869,0.00035206,7]
[425235670,1781627510000,-2301.506184,0.00035206,7]
[425235639,1781627510000,-931.731581,0.00035206,7]
[425235641,1781627510000,-159.04856,0.00035206,7]
[425235643,1781627510000,-931.731581,0.00035206,7]
[425235645,1781627510000,-859.813943,0.00035206,7]
[425235646,1781627510000,-399.18849,0.00035206,7]
[425235644,1781627510000,-151.0,0.00035206,7]
[425235647,1781627510000,-159.04856,0.00035206,7]
[425235649,1781627510000,-151.0,0.00035206,7]
[425235652,1781627510000,-931.731581,0.00035206,7]
[425235653,1781627510000,-151.0,0.00035206,7]
[425235654,1781627510000,-3653.519003,0.00035206,7]
[425235650,1781627510000,-399.18849,0.00035206,7]
[425235636,1781627510000,-859.813943,0.00035206,7]
[425235656,1781627510000,-2301.506184,0.00035206,7]
[425235651,1781627510000,-159.04856,0.00035206,7]
[425235664,1781627510000,-2301.506184,0.00035206,7]
[425235662,1781627510000,-1531.422776,0.00035206,7]
[425235658,1781627510000,-1531.422776,0.00035206,7]
[425235659,1781627510000,-2301.506184,0.00035206,7]
[425235665,1781627510000,-196.575907,0.00035206,7]
[425235660,1781627510000,-3653.519003,0.00035206,7]
[425235657,1781627510000,-3653.519003,0.00035206,7]
[425235661,1781627510000,-196.575907,0.00035206,7]
[425235663,1781627510000,-151.0,0.00035206,7]
[425235655,1781627510000,-1531.422776,0.00035206,7]
[425235666,1781627510000,-3653.519003,0.00035206,7]
[425235730,1781627511000,-400.0,0.00035214,7]
[425235719,1781627511000,-255.971314,0.00035214,7]
[425235721,1781627511000,-348.953007,0.00035214,7]
[425235726,1781627511000,-365.984958,0.00035214,7]
[425235725,1781627511000,-500.0,0.00035214,7]
[425235727,1781627511000,-365.984958,0.00035214,7]
[425235733,1781627511000,-355.712337,0.00035214,7]
[425235732,1781627511000,-500.0,0.00035214,7]
[425235722,1781627511000,-500.0,0.00035214,7]
[425235734,1781627511000,-400.0,0.00035214,7]
[425235731,1781627511000,-400.0,0.00035214,7]
[425235729,1781627511000,-365.984958,0.00035214,7]
[425235735,1781627511000,-500.0,0.00035214,7]
[425235714,1781627511000,-348.953007,0.00035214,7]
[425235737,1781627511000,-400.0,0.00035214,7]
[425235738,1781627511000,-500.0,0.00035214,7]
[425235736,1781627511000,-355.712337,0.00035214,7]
[425235745,1781627511000,-1350.019466,0.00035214,7]
[425235739,1781627511000,-355.712337,0.00035214,7]
[425235728,1781627511000,-365.984958,0.00035214,7]
[425235724,1781627511000,-500.0,0.00035214,7]
[425235720,1781627511000,-255.971314,0.00035214,7]
[425235717,1781627511000,-348.953007,0.00035214,7]
[425235741,1781627511000,-355.712337,0.00035214,7]
[425235699,1781627511000,-205.741682,0.00035214,7]
[425235697,1781627511000,-205.741682,0.00035214,7]
[425235698,1781627511000,-347.033666,0.00035214,7]
[425235701,1781627511000,-446.747049,0.00035214,7]
[425235702,1781627511000,-322.461,0.00035214,7]
[425235700,1781627511000,-446.747049,0.00035214,7]
[425235703,1781627511000,-151.0,0.00035214,7]
[425235711,1781627511000,-322.461,0.00035214,7]
[425235716,1781627511000,-255.971314,0.00035214,7]
[425235704,1781627511000,-446.747049,0.00035214,7]
[425235709,1781627511000,-151.0,0.00035214,7]
[425235710,1781627511000,-151.0,0.00035214,7]
[425235706,1781627511000,-322.461,0.00035214,7]
[425235707,1781627511000,-446.747049,0.00035214,7]
[425235713,1781627511000,-255.971314,0.00035214,7]
[425235712,1781627511000,-151.0,0.00035214,7]
[425235723,1781627511000,-500.0,0.00035214,7]
[425235715,1781627511000,-151.0,0.00035214,7]
[425235718,1781627511000,-348.953007,0.00035214,7]
[425235705,1781627511000,-151.0,0.00035214,7]
[425235708,1781627511000,-322.461,0.00035214,7]
[425235742,1781627511000,-151.0,0.00035214,7]
[425235740,1781627511000,-500.0,0.00035214,7]
[425235768,1781627511000,-349.587098,0.00035214,7]
[425235770,1781627511000,-171.185326,0.00035214,7]
[425235781,1781627511000,-179.317282,0.00035214,7]
[425235773,1781627511000,-179.317282,0.00035214,7]
[425235772,1781627511000,-660.446682,0.00035214,7]
[425235775,1781627511000,-349.587098,0.00035214,7]
[425235774,1781627511000,-2644.187253,0.00035214,7]
[425235777,1781627511000,-157.50318,0.00035214,7]
[425235778,1781627511000,-171.185326,0.00035214,7]
[425235764,1781627511000,-151.0,0.00035214,7]
[425235780,1781627511000,-660.446682,0.00035214,7]
[425235783,1781627511000,-349.587098,0.00035214,7]
[425235782,1781627511000,-157.50318,0.00035214,7]
[425235784,1781627511000,-2099.548395,0.00035214,7]
[425235788,1781627511000,-660.446682,0.00035214,7]
[425235786,1781627511000,-285.452071,0.00035214,7]
[425235785,1781627511000,-171.185326,0.00035214,7]
[425235789,1781627511000,-1005.808885,0.00035214,7]
[425235787,1781627511000,-3998.243273,0.00035214,7]
[425235744,1781627511000,-1350.019466,0.00035214,7]
[425235779,1781627511000,-3998.243273,0.00035214,7]
[425235769,1781627511000,-275.757673,0.00035214,7]
[425235776,1781627511000,-275.757673,0.00035214,7]
[425235766,1781627511000,-2644.187253,0.00035214,7]
[425235743,1781627511000,-151.0,0.00035214,7]
[425235761,1781627511000,-349.587098,0.00035214,7]
[425235747,1781627511000,-750.075801,0.00035214,7]
[425235757,1781627511000,-151.0,0.00035214,7]
[425235746,1781627511000,-1350.019466,0.00035214,7]
[425235758,1781627511000,-283.522879,0.00035214,7]
[425235749,1781627511000,-283.522879,0.00035214,7]
[425235750,1781627511000,-750.075801,0.00035214,7]
[425235754,1781627511000,-151.0,0.00035214,7]
[425235753,1781627511000,-2644.187253,0.00035214,7]
[425235748,1781627511000,-1350.019466,0.00035214,7]
[425235756,1781627511000,-275.757673,0.00035214,7]
[425235752,1781627511000,-283.522879,0.00035214,7]
[425235755,1781627511000,-750.075801,0.00035214,7]
[425235759,1781627511000,-2644.187253,0.00035214,7]
[425235762,1781627511000,-275.757673,0.00035214,7]
[425235765,1781627511000,-283.522879,0.00035214,7]
[425235760,1781627511000,-151.0,0.00035214,7]
[425235763,1781627511000,-750.075801,0.00035214,7]
[425235751,1781627511000,-151.0,0.00035214,7]
[425235771,1781627511000,-3998.243273,0.00035214,7]
[425235767,1781627511000,-186.025911,0.00035214,7]
[425235822,1781627512000,-2917.101576,0.00035214,7]
[425235839,1781627512000,-1329.178592,0.00035214,7]
[425235829,1781627512000,-3826.470002,0.00035214,7]
[425235827,1781627512000,-152.549959,0.00035214,7]
[425235824,1781627512000,-3826.470002,0.00035214,7]
[425235821,1781627512000,-263.75643,0.00035214,7]
[425235825,1781627512000,-238.920172,0.00035214,7]
[425235826,1781627512000,-2917.101576,0.00035214,7]
[425235820,1781627512000,-457.237893,0.00035214,7]
[425235828,1781627512000,-529.999072,0.00035214,7]
[425235823,1781627512000,-152.549959,0.00035214,7]
[425235832,1781627512000,-529.999072,0.00035214,7]
[425235842,1781627512000,-1849.434566,0.00035214,7]
[425235830,1781627512000,-238.920172,0.00035214,7]
[425235834,1781627512000,-407.671554,0.00035214,7]
[425235833,1781627512000,-529.999072,0.00035214,7]
[425235831,1781627512000,-2917.101576,0.00035214,7]
[425235838,1781627512000,-1849.434566,0.00035214,7]
[425235835,1781627512000,-1329.178592,0.00035214,7]
[425235837,1781627512000,-407.671554,0.00035214,7]
[425235841,1781627512000,-1329.178592,0.00035214,7]
[425235843,1781627512000,-407.671554,0.00035214,7]
[425235851,1781627512000,-246.370928,0.00035214,7]
[425235846,1781627512000,-366.043143,0.00035214,7]
[425235818,1781627512000,-3826.470002,0.00035214,7]
[425235836,1781627512000,-529.999072,0.00035214,7]
[425235819,1781627512000,-238.920172,0.00035214,7]
[425235795,1781627512000,-517.131784,0.00035214,7]
[425235809,1781627512000,-263.75643,0.00035214,7]
[425235840,1781627512000,-407.671554,0.00035214,7]
[425235793,1781627512000,-3998.243273,0.00035214,7]
[425235791,1781627512000,-157.50318,0.00035214,7]
[425235792,1781627512000,-2099.548395,0.00035214,7]
[425235790,1781627512000,-179.317282,0.00035214,7]
[425235804,1781627512000,-171.185326,0.00035214,7]
[425235803,1781627512000,-263.75643,0.00035214,7]
[425235794,1781627512000,-1005.808885,0.00035214,7]
[425235797,1781627512000,-660.446682,0.00035214,7]
[425235800,1781627512000,-1005.808885,0.00035214,7]
[425235796,1781627512000,-179.317282,0.00035214,7]
[425235798,1781627512000,-157.50318,0.00035214,7]
[425235811,1781627512000,-3826.470002,0.00035214,7]
[425235799,1781627512000,-2099.548395,0.00035214,7]
[425235801,1781627512000,-517.131784,0.00035214,7]
[425235816,1781627512000,-2917.101576,0.00035214,7]
[425235805,1781627512000,-2099.548395,0.00035214,7]
[425235807,1781627512000,-517.131784,0.00035214,7]
[425235817,1781627512000,-152.549959,0.00035214,7]
[425235806,1781627512000,-1005.808885,0.00035214,7]
[425235808,1781627512000,-457.237893,0.00035214,7]
[425235813,1781627512000,-517.131784,0.00035214,7]
[425235812,1781627512000,-238.920172,0.00035214,7]
[425235814,1781627512000,-457.237893,0.00035214,7]
[425235815,1781627512000,-263.75643,0.00035214,7]
[425235810,1781627512000,-152.549959,0.00035214,7]
[425235802,1781627512000,-457.237893,0.00035214,7]
[425235849,1781627512000,-246.370928,0.00035214,7]
[425235850,1781627512000,-366.043143,0.00035214,7]
[425235848,1781627512000,-366.043143,0.00035214,7]
[425235879,1781627512000,-223.37,0.00035303,29]
[425235880,1781627512000,-225.86,0.00035303,29]
[425235881,1781627512000,-390.11,0.00035303,29]
[425235884,1781627512000,-597.18410789,0.00035328,14]
[425235882,1781627512000,-507.69,0.00035303,29]
[425235883,1781627512000,-605.1,0.00035303,29]
[425235886,1781627512000,-150.0,0.00035342,2]
[425235889,1781627512000,-500.0,0.00035356,30]
[425235897,1781627512000,-5000.0,0.00035371,2]
[425235885,1781627512000,-377.0,0.00035337,2]
[425235896,1781627512000,-5000.0,0.00035371,2]
[425235895,1781627512000,-5000.0,0.00035371,2]
[425235878,1781627512000,-478.07,0.00035303,29]
[425235888,1781627512000,-2000.0,0.00035353,7]
[425235893,1781627512000,-332.84,0.00035356,30]
[425235892,1781627512000,-500.0,0.00035356,30]
[425235891,1781627512000,-500.0,0.00035356,30]
[425235894,1781627512000,-279.45,0.0003536,30]
[425235898,1781627512000,-188.955378,0.00035372,7]
[425235900,1781627512000,-188.955378,0.00035372,7]
[425235901,1781627512000,-188.955378,0.00035372,7]
[425235903,1781627512000,-301.88273,0.00035372,7]
[425235905,1781627512000,-307.957345,0.00035372,7]
[425235899,1781627512000,-188.955378,0.00035372,7]
[425235902,1781627512000,-301.88273,0.00035372,7]
[425235904,1781627512000,-301.88273,0.00035372,7]
[425235890,1781627512000,-500.0,0.00035356,30]
[425235877,1781627512000,-161.02,0.00035303,29]
[425235887,1781627512000,-883.0,0.00035342,120]
[425235875,1781627512000,-453.46,0.00035303,29]
[425235876,1781627512000,-483.56,0.00035303,29]
[425235847,1781627512000,-1849.434566,0.00035214,7]
[425235844,1781627512000,-1329.178592,0.00035214,7]
[425235853,1781627512000,-246.370928,0.00035214,7]
[425235852,1781627512000,-366.043143,0.00035214,7]
[425235863,1781627512000,-151.0,0.00035214,7]
[425235859,1781627512000,-287.441388,0.00035214,7]
[425235854,1781627512000,-241.248933,0.00035214,7]
[425235855,1781627512000,-246.370928,0.00035214,7]
[425235858,1781627512000,-241.248933,0.00035214,7]
[425235860,1781627512000,-241.248933,0.00035214,7]
[425235862,1781627512000,-287.441388,0.00035214,7]
[425235861,1781627512000,-287.441388,0.00035214,7]
[425235845,1781627512000,-1849.434566,0.00035214,7]
[425235857,1781627512000,-287.441388,0.00035214,7]
[425235856,1781627512000,-241.248933,0.00035214,7]
[425235873,1781627512000,-2500.0,0.000353,14]
[425235868,1781627512000,-1702.67,0.00035269,5]
[425235870,1781627512000,-150.0,0.00035285,2]
[425235869,1781627512000,-650.352466,0.00035279,120]
[425235872,1781627512000,-150.0,0.00035285,2]
[425235871,1781627512000,-150.0,0.00035285,2]
[425235874,1781627512000,-1349.43,0.00035303,29]
[425235866,1781627512000,-151.35245,0.00035245,4]
[425235864,1781627512000,-151.0,0.00035214,7]
[425235865,1781627512000,-2029.0026,0.00035217,2]
[425235867,1781627512000,-4876.7007,0.00035266,2]
[425235946,1781627513000,-500.0,0.00035413,60]
[425235937,1781627513000,-2180.0836,0.00035389,2]
[425235939,1781627513000,-200.0,0.000354,60]
[425235941,1781627513000,-204.0,0.000354,120]
[425235938,1781627513000,-4876.7007,0.00035389,2]
[425235944,1781627513000,-500.0,0.00035413,60]
[425235945,1781627513000,-500.0,0.00035413,60]
[425235934,1781627513000,-350.0,0.0003538,38]
[425235942,1781627513000,-500.0,0.00035413,60]
[425235940,1781627513000,-327.06,0.000354,60]
[425235948,1781627513000,-486.87669453,0.00035413,60]
[425235936,1781627513000,-2029.0026,0.00035389,2]
[425235947,1781627513000,-500.0,0.00035413,60]
[425235958,1781627513000,-167.245299,0.00035455,7]
[425235956,1781627513000,-100000.0,0.00035455,30]
[425235957,1781627513000,-100000.0,0.00035455,7]
[425235951,1781627513000,-451.04630341,0.00035433,2]
[425235954,1781627513000,-100000.0,0.00035455,90]
[425235949,1781627513000,-2018.3914846,0.00035423,15]
[425235950,1781627513000,-5007.84999723,0.00035432,2]
[425235953,1781627513000,-100000.0,0.00035455,120]
[425235952,1781627513000,-500.1,0.00035447,31]
[425235960,1781627513000,-206.380469,0.00035455,7]
[425235971,1781627513000,-151.0,0.00035455,7]
[425235969,1781627513000,-215.795904,0.00035455,7]
[425235943,1781627513000,-500.0,0.00035413,60]
[425235955,1781627513000,-100000.0,0.00035455,60]
[425235935,1781627513000,-158.25033973,0.00035382,2]
[425235965,1781627513000,-151.0,0.00035455,7]
[425235933,1781627513000,-151.5,0.00035373,7]
[425235964,1781627513000,-151.0,0.00035455,7]
[425235908,1781627513000,-151.0,0.00035372,7]
[425235906,1781627513000,-301.88273,0.00035372,7]
[425235909,1781627513000,-307.957345,0.00035372,7]
[425235907,1781627513000,-307.957345,0.00035372,7]
[425235911,1781627513000,-399.757887,0.00035372,7]
[425235920,1781627513000,-203.614014,0.00035372,7]
[425235922,1781627513000,-203.614014,0.00035372,7]
[425235910,1781627513000,-307.957345,0.00035372,7]
[425235921,1781627513000,-203.614014,0.00035372,7]
[425235912,1781627513000,-399.757887,0.00035372,7]
[425235918,1781627513000,-203.614014,0.00035372,7]
[425235915,1781627513000,-345.327613,0.00035372,7]
[425235917,1781627513000,-345.327613,0.00035372,7]
[425235914,1781627513000,-399.757887,0.00035372,7]
[425235913,1781627513000,-345.327613,0.00035372,7]
[425235916,1781627513000,-399.757887,0.00035372,7]
[425235919,1781627513000,-345.327613,0.00035372,7]
[425235924,1781627513000,-154.360703,0.00035372,7]
[425235923,1781627513000,-154.360703,0.00035372,7]
[425235932,1781627513000,-151.5,0.00035373,7]
[425235926,1781627513000,-154.360703,0.00035372,7]
[425235925,1781627513000,-154.360703,0.00035372,7]
[425235929,1781627513000,-201.195806,0.00035372,7]
[425235931,1781627513000,-1592.75,0.00035372,60]
[425235928,1781627513000,-201.195806,0.00035372,7]
[425235927,1781627513000,-201.195806,0.00035372,7]
[425235930,1781627513000,-201.195806,0.00035372,7]
[425235967,1781627513000,-151.0,0.00035455,7]
[425235973,1781627513000,-294.481292,0.00035455,7]
[425235966,1781627513000,-151.0,0.00035455,7]
[425235997,1781627513000,-276.683965,0.00035455,7]
[425236000,1781627513000,-210.16568,0.00035455,7]
[425236006,1781627513000,-151.0,0.00035455,7]
[425236001,1781627513000,-210.16568,0.00035455,7]
[425236002,1781627513000,-276.683965,0.00035455,7]
[425236003,1781627513000,-210.16568,0.00035455,7]
[425235999,1781627513000,-276.683965,0.00035455,7]
[425236004,1781627513000,-210.16568,0.00035455,7]
[425235998,1781627513000,-319.326811,0.00035455,7]
[425236005,1781627513000,-165.495048,0.00035455,7]
[425236018,1781627513000,-151.0,0.00035455,7]
[425236008,1781627513000,-2583.349012,0.00035455,7]
[425236009,1781627513000,-165.495048,0.00035455,7]
[425236011,1781627513000,-2583.349012,0.00035455,7]
[425236017,1781627513000,-2583.349012,0.00035455,7]
[425236016,1781627513000,-318.766613,0.00035455,7]
[425236010,1781627513000,-318.766613,0.00035455,7]
[425236012,1781627513000,-165.495048,0.00035455,7]
[425236013,1781627513000,-318.766613,0.00035455,7]
[425236014,1781627513000,-2583.349012,0.00035455,7]
[425236015,1781627513000,-165.495048,0.00035455,7]
[425236019,1781627513000,-151.0,0.00035455,7]
[425236021,1781627513000,-151.0,0.00035455,3]
[425236020,1781627513000,-151.0,0.00035455,7]
[425236022,1781627513000,-166.28585,0.00035455,7]
[425236023,1781627513000,-151.0,0.00035455,3]
[425236024,1781627513000,-166.28585,0.00035455,7]
[425235995,1781627513000,-276.683965,0.00035455,7]